fUST/lending_fUST_20260117
["ID","MTS","AMOUNT","RATE_DAILY","PERIOD"]
[402319296,1768657847942,-500.0,0.00016438,3]
[402319298,1768657847952,-735.38,0.00016438,3]
[402319300,1768657847962,-500.0,0.00016438,3]
[402319302,1768657847971,-500.0,0.00016438,3]
[402319304,1768657847980,-2175.89,0.00016438,3]
[402319306,1768657847989,-482.47504826,0.00016438,3]
[402319308,1768657847999,-500.0,0.00016438,3]
[402319310,1768657848008,-500.0,0.00016438,3]
[402319318,1768657848080,-1222.23,0.00016438,3]
[402319319,1768657848089,-1386.52,0.00016438,3]
[402319321,1768657848099,-500.0,0.00016438,3]
[402319323,1768657848108,-1984.85,0.00016438,3]
[402319325,1768657848119,-788.58,0.00016438,3]
[402319327,1768657848127,-3518.62,0.00016438,3]
[402319329,1768657848136,-500.0,0.00016438,3]
[402319331,1768657848145,-879.96,0.00016438,3]
[402319333,1768657848154,-550.49,0.00016438,3]
[402319335,1768657848164,-500.0,0.00016438,3]
[402319337,1768657848172,-500.0,0.00016438,3]
[402319339,1768657848182,-500.0,0.00016438,3]
[402319341,1768657848195,-500.0,0.00016438,3]
[402319343,1768657848204,-500.0,0.00016438,3]
[402319345,1768657848213,-500.0,0.00016438,3]
[402319347,1768657848222,-848.8,0.00016438,3]
[402319349,1768657848231,-500.0,0.00016438,3]
[402319351,1768657848240,-719.8,0.00016438,3]
[402319353,1768657848249,-500.0,0.00016438,3]
[402319355,1768657848259,-13998.36,0.00016438,3]
[402319357,1768657848267,-377.8688684,0.00016438,2]
[402319359,1768657848276,-377.8688684,0.00016438,2]
[402319361,1768657848285,-377.8688684,0.00016438,2]
[402319363,1768657848295,-377.1283076,0.00016438,2]
[402319365,1768657848305,-500.0,0.00016438,2]
[402319367,1768657848314,-393.42,0.00016438,4]
[402319368,1768657848323,-3000.0,0.0001644,2]
[402319371,1768657848333,-3000.0,0.0001645,2]
[402319372,1768657848343,-3000.0,0.0001646,2]
[402319374,1768657848352,-3000.0,0.0001647,2]
[402319377,1768657848363,-3000.0,0.0001648,2]
[402319378,1768657848372,-180.568186,0.0001648,2]
[402319380,1768657848382,-180.568186,0.0001648,2]
[402319382,1768657848391,-180.568186,0.0001648,2]
[402319384,1768657848401,-180.568186,0.0001648,2]
[402319386,1768657848410,-3000.0,0.0001649,2]
[402319388,1768657848419,-3000.0,0.000165,2]
[402319390,1768657848429,-3000.0,0.0001651,2]
[402319392,1768657848437,-3000.0,0.0001652,2]
[402319394,1768657848447,-3000.0,0.0001653,2]
[402319396,1768657848456,-3000.0,0.0001654,2]
[402319398,1768657848465,-151.0,0.0001654,2]
[402319400,1768657848474,-151.0,0.0001654,2]
[402319402,1768657848487,-3000.0,0.0001655,2]
[402319404,1768657848496,-3000.0,0.0001656,2]
[402319406,1768657848505,-3000.0,0.0001657,2]
[402319408,1768657848516,-4394.902109,0.0001658,2]
[402319410,1768657848526,-244.191,0.00016627,2]
[402319412,1768657848535,-232.572,0.00016627,2]
[402319414,1768657848544,-250.0,0.00016627,2]
[402319416,1768657848554,-200.096,0.00016627,2]
[402319418,1768657848563,-261.666,0.00016627,2]
[402319420,1768657848572,-267.705,0.00016627,2]
[402319422,1768657848581,-151.0,0.00016712,3]
[402319424,1768657848593,-500.0,0.00016712,3]
[402319426,1768657848602,-500.0,0.00016712,3]
[402319428,1768657848610,-401.70931218,0.00016712,3]
[402319430,1768657848619,-500.0,0.00016712,3]
[402319432,1768657848628,-500.0,0.00016712,3]
[402319434,1768657848637,-500.0,0.00016712,2]
[402319436,1768657848645,-500.0,0.00016712,3]
[402319438,1768657848654,-593.04,0.00016712,3]
[402319440,1768657848663,-500.0,0.00016712,2]
[402319442,1768657848673,-500.0,0.00016712,3]
[402319444,1768657848682,-500.0,0.00016712,3]
[402319446,1768657848691,-500.0,0.00016712,3]
[402319448,1768657848700,-500.0,0.00016712,3]
[402319449,1768657848709,-1438.44,0.00016712,3]
[402319451,1768657848718,-500.0,0.00016712,3]
[402319453,1768657848728,-500.0,0.00016712,3]
[402319455,1768657848737,-500.0,0.00016712,3]
[402319457,1768657848746,-500.0,0.00016712,3]
[402319459,1768657848755,-500.0,0.00016712,3]
[402319461,1768657848764,-500.0,0.00016712,3]
[402319463,1768657848773,-500.0,0.00016712,3]
[402319465,1768657848783,-500.0,0.00016712,3]
[402319467,1768657848792,-500.0,0.00016712,3]
[402319469,1768657848801,-500.0,0.00016712,3]
[402319471,1768657848810,-500.0,0.00016712,3]
[402319473,1768657848819,-500.0,0.00016712,3]
[402319475,1768657848828,-500.0,0.00016712,3]
[402319477,1768657848837,-500.0,0.00016712,3]
[402319479,1768657848847,-560.59,0.00016712,3]
[402319481,1768657848856,-500.0,0.00016712,3]
[402319483,1768657848866,-845.61,0.00016712,3]
[402319485,1768657848875,-500.0,0.00016712,3]
[402319487,1768657848884,-1072.45,0.00016712,3]
[402319489,1768657848892,-500.0,0.00016712,3]
[402319491,1768657848901,-500.0,0.00016712,3]
[402319493,1768657848910,-802.14,0.00016712,3]
[402319494,1768657848919,-500.0,0.00016712,3]
[402319496,1768657848928,-500.0,0.00016712,3]
[402319498,1768657848937,-734.42,0.00016712,3]
[402319500,1768657848946,-500.0,0.00016712,3]
[402319502,1768657848955,-1356.6,0.00016712,3]
[402319504,1768657848964,-500.0,0.00016712,3]
[402319506,1768657848974,-500.0,0.00016712,3]
[402319508,1768657848983,-702.44,0.00016712,3]
[402319510,1768657848991,-500.0,0.00016712,3]
[402319512,1768657849001,-500.0,0.00016712,3]
[402319514,1768657849010,-500.0,0.00016712,3]
[402319516,1768657849020,-703.48,0.00016712,3]
[402319518,1768657849029,-645.77,0.00016712,3]
[402319520,1768657849038,-904.69,0.00016712,3]
[402319522,1768657849047,-500.0,0.00016712,3]
[402319524,1768657849059,-500.0,0.00016712,3]
[402319526,1768657849067,-654.51,0.00016712,3]
[402319528,1768657849076,-576.54,0.00016712,3]
[402319530,1768657849084,-500.0,0.00016712,3]
[402319532,1768657849094,-530.72,0.00016712,3]
[402319534,1768657849103,-500.0,0.00016712,3]
[402319536,1768657849111,-500.0,0.00016712,3]
[402319538,1768657849120,-940.06,0.00016712,3]
[402319540,1768657849129,-500.0,0.00016712,3]
[402319541,1768657849138,-500.0,0.00016712,3]
[402319543,1768657849147,-1262.47,0.00016712,3]
[402319545,1768657849156,-500.0,0.00016712,3]
[402319547,1768657849165,-500.0,0.00016712,3]
[402319549,1768657849173,-500.0,0.00016712,3]
[402319551,1768657849183,-500.0,0.00016712,3]
[402319553,1768657849195,-500.0,0.00016712,3]
[402319555,1768657849204,-500.0,0.00016712,3]
[402319557,1768657849213,-684.39,0.00016712,3]
[402319559,1768657849222,-500.0,0.00016712,3]
[402319561,1768657849231,-909.14,0.00016712,3]
[402319563,1768657849240,-1534.89,0.00016712,3]
[402319565,1768657849248,-501.19,0.00016712,3]
[402319567,1768657849258,-500.0,0.00016712,3]
[402319568,1768657849267,-500.0,0.00016712,3]
[402319570,1768657849277,-500.0,0.00016712,3]
[402319572,1768657849286,-500.0,0.00016712,3]
[402319574,1768657849295,-500.0,0.00016712,3]
[402319576,1768657849304,-500.0,0.00016712,3]
[402319578,1768657849313,-500.0,0.00016712,3]
[402319580,1768657849323,-597.75,0.00016712,3]
[402319582,1768657849334,-623.34,0.00016712,3]
[402319584,1768657849343,-562.9,0.00016712,3]
[402319586,1768657849352,-500.0,0.00016712,3]
[402319588,1768657849361,-849.67,0.00016712,3]
[402319590,1768657849370,-500.0,0.00016712,3]
[402319592,1768657849379,-500.0,0.00016712,3]
[402319594,1768657849388,-500.0,0.00016712,3]
[402319596,1768657849397,-500.0,0.00016712,3]
[402319598,1768657849407,-697.17,0.00016712,3]
[402319600,1768657849416,-1433.91,0.00016712,3]
[402319602,1768657849425,-524.76,0.00016712,3]
[402319604,1768657849434,-1449.7,0.00016712,3]
[402319606,1768657849443,-500.0,0.00016712,2]
[402319608,1768657849452,-562.21,0.00016712,3]
[402319610,1768657849461,-940.4,0.00016712,3]
[402319612,1768657849470,-500.0,0.00016712,3]
[402319614,1768657849479,-510.09347373,0.00016712,3]
[402319616,1768657849488,-500.0,0.00016712,3]
[402319617,1768657849496,-782.94,0.00016712,3]
[402319619,1768657849505,-480.06845953,0.00016712,3]
[402319621,1768657849514,-693.86,0.00016712,3]
[402319623,1768657849523,-500.0,0.00016712,3]
[402319625,1768657849532,-829.04,0.00016712,3]
[402319627,1768657849541,-500.0,0.00016712,3]
[402319629,1768657849550,-1447.76,0.00016712,3]
[402319631,1768657849559,-500.0,0.00016712,3]
[402319633,1768657849567,-500.0,0.00016712,3]
[402319635,1768657849578,-500.0,0.00016712,3]
[402319637,1768657849589,-500.0,0.00016712,3]
[402319639,1768657849597,-500.0,0.00016712,3]
[402319641,1768657849607,-500.0,0.00016712,3]
[402319643,1768657849616,-606.30623582,0.00016712,3]
[402319645,1768657849625,-500.0,0.00016712,3]
[402319647,1768657849634,-1021.37,0.00016712,3]
[402319649,1768657849643,-500.0,0.00016712,3]
[402319651,1768657849653,-500.0,0.00016712,3]
[402319653,1768657849662,-500.0,0.00016712,3]
[402319655,1768657849672,-500.0,0.00016712,3]
[402319657,1768657849681,-500.0,0.00016712,3]
[402319659,1768657849690,-500.0,0.00016712,3]
[402319661,1768657849699,-500.0,0.00016712,3]
[402319663,1768657849707,-500.0,0.00016712,3]
[402319664,1768657849716,-500.0,0.00016712,3]
[402319666,1768657849725,-500.0,0.00016712,3]
[402319668,1768657849735,-552.28,0.00016712,3]
[402319670,1768657849744,-500.0,0.00016712,3]
[402319672,1768657849753,-1191.44,0.00016712,3]
[402319674,1768657849762,-833.77,0.00016712,3]
[402319676,1768657849771,-500.0,0.00016712,3]
[402319678,1768657849780,-500.0,0.00016712,3]
[402319680,1768657849789,-500.0,0.00016712,3]
[402319682,1768657849798,-921.69,0.00016712,3]
[402319684,1768657849808,-500.0,0.00016712,3]
[402319686,1768657849817,-500.0,0.00016712,3]
[402319688,1768657849827,-500.0,0.00016712,3]
[402319690,1768657849836,-537.63,0.00016712,3]
[402319691,1768657849845,-500.0,0.00016712,3]
[402319692,1768657849854,-500.0,0.00016712,3]
[402319693,1768657849863,-500.0,0.00016712,3]
[402319694,1768657849872,-500.0,0.00016712,3]
[402319695,1768657849881,-1164.29,0.00016712,3]
[402319696,1768657849890,-500.0,0.00016712,3]
[402319697,1768657849900,-500.0,0.00016712,3]
[402319698,1768657849909,-500.0,0.00016712,3]
[402319699,1768657849918,-500.0,0.00016712,3]
[402319700,1768657849927,-1038.61,0.00016712,3]
[402319701,1768657849937,-500.0,0.00016712,3]
[402319702,1768657849946,-1000.0,0.00016712,2]
[402319703,1768657849955,-500.0,0.00016712,3]
[402319704,1768657849964,-500.0,0.00016712,3]
[402319705,1768657849973,-500.0,0.00016712,3]
[402319706,1768657849982,-500.0,0.00016712,3]
[402319707,1768657849991,-500.0,0.00016712,3]
[402319708,1768657850000,-500.0,0.00016712,3]
[402319709,1768657850009,-500.0,0.00016712,3]
[402319710,1768657850018,-1200.0,0.00016712,2]
[402319711,1768657850027,-500.0,0.00016712,3]
[402319712,1768657850038,-500.0,0.00016712,3]
[402319713,1768657850047,-839.3,0.00016712,3]
[402319714,1768657850056,-500.0,0.00016712,2]
[402319715,1768657850066,-500.0,0.00016712,2]
[402319716,1768657850074,-500.0,0.00016712,3]
[402319717,1768657850083,-500.0,0.00016712,3]
[402319718,1768657850092,-500.0,0.00016712,3]
[402319719,1768657850101,-574.15,0.00016712,3]
[402319720,1768657850110,-500.0,0.00016712,3]
[402319721,1768657850119,-500.0,0.00016712,3]
[402319722,1768657850129,-500.0,0.00016712,2]
[402319723,1768657850138,-500.0,0.00016712,3]
[402319725,1768657850147,-500.0,0.00016712,3]
[402319727,1768657850155,-500.0,0.00016712,3]
[402319729,1768657850164,-500.0,0.00016712,3]
[402319731,1768657850173,-500.0,0.00016712,3]
[402319732,1768657850182,-500.0,0.00016712,3]
[402319734,1768657850194,-1017.57,0.00016712,3]
[402319736,1768657850203,-821.81,0.00016712,3]
[402319738,1768657850213,-500.0,0.00016712,3]
[402319740,1768657850222,-500.0,0.00016712,3]
[402319742,1768657850233,-1026.03,0.00016712,3]
[402319744,1768657850242,-500.0,0.00016712,3]
[402319746,1768657850250,-882.47,0.00016712,3]
[402319748,1768657850260,-500.0,0.00016712,3]
[402319751,1768657850270,-500.0,0.00016712,3]
[402319753,1768657850280,-500.0,0.00016712,3]
[402319754,1768657850289,-500.0,0.00016712,3]
[402319756,1768657850299,-500.0,0.00016712,3]
[402319758,1768657850308,-500.0,0.00016712,3]
[402319760,1768657850317,-500.0,0.00016712,3]
[402319762,1768657850326,-500.0,0.00016712,3]
[402319764,1768657850336,-500.0,0.00016712,3]
[402319766,1768657850345,-500.0,0.00016712,3]
[402319768,1768657850353,-622.79,0.00016712,3]
[402319770,1768657850362,-500.0,0.00016712,3]
[402319772,1768657850371,-500.0,0.00016712,3]
[402319774,1768657850381,-560.2982487,0.00016712,3]
[402319776,1768657850390,-500.0,0.00016712,3]
[402319778,1768657850399,-500.0,0.00016712,3]
[402319780,1768657850408,-500.0,0.00016712,3]
[402319782,1768657850418,-500.0,0.00016712,3]
[402319784,1768657850427,-500.0,0.00016712,3]
[402319786,1768657850436,-500.0,0.00016712,3]
[402319788,1768657850445,-500.0,0.00016712,3]
[402319790,1768657850454,-893.86,0.00016712,3]
[402319792,1768657850464,-500.0,0.00016712,3]
[402319794,1768657850473,-1188.47,0.00016712,3]
[402319796,1768657850483,-500.0,0.00016712,3]
[402319798,1768657850492,-1673.73,0.00016712,3]
[402319800,1768657850501,-500.0,0.00016712,3]
[402319802,1768657850511,-500.0,0.00016712,3]
[402319804,1768657850520,-500.0,0.00016712,3]
[402319806,1768657850530,-1929.97,0.00016712,3]
[402319808,1768657850539,-948.86,0.00016712,3]
[402319810,1768657850548,-1041.3,0.00016712,3]
[402319812,1768657850557,-716.82,0.00016712,3]
[402319814,1768657850567,-500.0,0.00016712,3]
[402319816,1768657850576,-257.29403538,0.00016712,3]
[402319818,1768657850585,-500.0,0.00016712,3]
[402319820,1768657850594,-500.0,0.00016712,3]
[402319822,1768657850604,-608.16905118,0.00016712,3]
[402319824,1768657850613,-500.0,0.00016712,3]
[402319826,1768657850623,-500.0,0.00016712,3]
[402319828,1768657850632,-500.0,0.00016712,3]
[402319830,1768657850641,-500.0,0.00016712,3]
[402319832,1768657850651,-500.0,0.00016712,3]
[402319834,1768657850660,-500.0,0.00016712,3]
[402319836,1768657850669,-575.88539769,0.00016712,3]
[402319838,1768657850679,-976.73,0.00016712,3]
[402319840,1768657850688,-500.0,0.00016712,3]
[402319842,1768657850697,-500.0,0.00016712,3]
[402319844,1768657850707,-500.0,0.00016712,3]
[402319846,1768657850716,-1806.94,0.00016712,3]
[402319848,1768657850726,-500.0,0.00016712,3]
[402319850,1768657850736,-500.0,0.00016712,3]
[402319852,1768657850745,-500.0,0.00016712,3]
[402319854,1768657850754,-500.0,0.00016712,3]
[402319856,1768657850764,-500.0,0.00016712,3]
[402319858,1768657850774,-805.31,0.00016712,3]
[402319860,1768657850783,-823.43,0.00016712,3]
[402319862,1768657850793,-500.0,0.00016712,3]
[402319864,1768657850802,-1524.89,0.00016712,3]
[402319866,1768657850811,-500.0,0.00016712,3]
[402319868,1768657850822,-500.0,0.00016712,3]
[402319870,1768657850831,-500.0,0.00016712,3]
[402319872,1768657850841,-500.0,0.00016712,3]
[402319874,1768657850850,-500.0,0.00016712,3]
[402319876,1768657850860,-500.0,0.00016712,3]
[402319878,1768657850869,-500.0,0.00016712,3]
[402319880,1768657850878,-500.0,0.00016712,3]
[402319882,1768657850888,-500.0,0.00016712,3]
[402319884,1768657850897,-500.0,0.00016712,3]
[402319886,1768657850906,-500.0,0.00016712,3]
[402319888,1768657850916,-500.0,0.00016712,3]
[402319890,1768657850925,-168.23320526,0.00016712,3]
[402319892,1768657850934,-569.47706073,0.00016712,3]
[402319894,1768657850943,-577.06010891,0.00016712,3]
[402319896,1768657850952,-617.43587181,0.00016712,3]
[402319898,1768657850961,-500.0,0.00016712,3]
[402319900,1768657850970,-500.0,0.00016712,3]
[402319902,1768657850979,-500.0,0.00016712,3]
[402319903,1768657850988,-500.0,0.00016712,3]
[402319905,1768657850997,-1089.59,0.00016712,3]
[402319907,1768657851006,-500.0,0.00016712,3]
[402319909,1768657851015,-500.0,0.00016712,3]
[402319911,1768657851025,-933.14,0.00016712,3]
[402319913,1768657851035,-500.0,0.00016712,3]
[402319915,1768657851044,-500.0,0.00016712,3]
[402319917,1768657851054,-1056.48,0.00016712,3]
[402319919,1768657851063,-717.05,0.00016712,3]
[402319921,1768657851072,-500.0,0.00016712,3]
[402319923,1768657851081,-483.43506742,0.00016712,3]
[402319925,1768657851090,-500.0,0.00016712,3]
[402319927,1768657851099,-1358.73,0.00016712,3]
[402319929,1768657851107,-500.0,0.00016712,3]
[402319931,1768657851117,-1278.39,0.00016712,3]
[402319933,1768657851127,-813.23,0.00016712,3]
[402319935,1768657851136,-500.0,0.00016712,3]
[402319938,1768657851154,-500.0,0.00016712,3]
[402319940,1768657851164,-1198.46,0.00016712,3]
[402319942,1768657851174,-501.85,0.00016712,3]
[402319944,1768657851183,-500.0,0.00016712,3]
[402319946,1768657851196,-1766.3,0.00016712,3]
[402319948,1768657851206,-500.0,0.00016712,3]
[402319950,1768657851215,-500.0,0.00016712,3]
[402319952,1768657851225,-595.74,0.00016712,3]
[402319954,1768657851234,-500.0,0.00016712,3]
[402319956,1768657851243,-500.0,0.00016712,3]
[402319958,1768657851253,-500.0,0.00016712,3]
[402319960,1768657851263,-874.38,0.00016712,3]
[402319962,1768657851272,-500.0,0.00016712,3]
[402319964,1768657851281,-500.0,0.00016712,3]
[402319966,1768657851291,-1578.17,0.00016712,3]
[402319968,1768657851300,-864.95,0.00016712,3]
[402319970,1768657851309,-500.0,0.00016712,3]
[402319972,1768657851319,-500.0,0.00016712,3]
[402319975,1768657851330,-654.14,0.00016712,3]
[402319976,1768657851338,-390.63830152,0.00016712,3]
[402319978,1768657851347,-500.0,0.00016712,3]
[402319981,1768657851357,-500.0,0.00016712,3]
[402319983,1768657851366,-508.84,0.00016712,3]
[402319984,1768657851375,-500.0,0.00016712,3]
[402319986,1768657851385,-500.0,0.00016712,3]
[402319989,1768657851395,-466.05554011,0.00016712,3]
[402319990,1768657851404,-701.97,0.00016712,3]
[402319992,1768657851413,-608.57,0.00016712,3]
[402319994,1768657851421,-578.47,0.00016712,3]
[402319996,1768657851430,-922.65,0.00016712,3]
[402319998,1768657851439,-500.0,0.00016712,3]
[402320000,1768657851449,-500.0,0.00016712,3]
[402320002,1768657851458,-848.7,0.00016712,3]
[402320004,1768657851467,-500.0,0.00016712,3]
[402320006,1768657851476,-500.0,0.00016712,3]
[402320008,1768657851485,-1650.76,0.00016712,3]
[402320010,1768657851494,-500.0,0.00016712,3]
[402320012,1768657851503,-890.28,0.00016712,3]
[402320014,1768657851512,-500.0,0.00016712,3]
[402320016,1768657851522,-521.96,0.00016712,3]
[402320018,1768657851532,-500.0,0.00016712,3]
[402320020,1768657851541,-1377.07,0.00016712,3]
[402320022,1768657851550,-1578.68,0.00016712,3]
[402320024,1768657851559,-696.53,0.00016712,3]
[402320026,1768657851568,-1279.92,0.00016712,3]
[402320028,1768657851577,-533.11445004,0.00016712,3]
[402320030,1768657851586,-540.45385614,0.00016712,3]
[402320032,1768657851596,-500.0,0.00016712,3]
[402320034,1768657851606,-958.52,0.00016712,3]
[402320036,1768657851615,-1612.03,0.00016712,3]
[402320039,1768657851625,-912.53,0.00016712,3]
[402320040,1768657851634,-500.0,0.00016712,3]
[402320042,1768657851644,-500.0,0.00016712,3]
[402320044,1768657851653,-895.77,0.00016712,3]
[402320046,1768657851662,-1812.12,0.00016712,3]
[402320049,1768657851672,-841.51,0.00016712,3]
[402320051,1768657851681,-565.76,0.00016712,3]
[402320052,1768657851690,-939.3,0.00016712,3]
[402320054,1768657851700,-500.0,0.00016712,3]
[402320057,1768657851709,-500.0,0.00016712,3]
[402320058,1768657851718,-1708.95,0.00016712,3]
[402320060,1768657851728,-500.0,0.00016712,3]
[402320062,1768657851737,-1000.0,0.00016712,2]
[402320064,1768657851746,-500.0,0.00016712,3]
[402320066,1768657851755,-500.0,0.00016712,3]
[402320068,1768657851764,-500.0,0.00016712,3]
[402320070,1768657851774,-1252.99,0.00016712,3]
[402320072,1768657851783,-2210.44,0.00016712,3]
[402320075,1768657851792,-500.0,0.00016712,3]
[402320076,1768657851802,-500.0,0.00016712,3]
[402320079,1768657851811,-500.0,0.00016712,3]
[402320081,1768657851821,-500.0,0.00016712,3]
[402320083,1768657851830,-500.0,0.00016712,3]
[402320085,1768657851840,-709.56,0.00016712,3]
[402320086,1768657851850,-521.02,0.00016712,3]
[402320088,1768657851859,-629.24,0.00016712,3]
[402320091,1768657851869,-500.0,0.00016712,3]
[402320093,1768657851879,-513.21,0.00016712,3]
[402320095,1768657851889,-500.0,0.00016712,3]
[402320097,1768657851899,-500.0,0.00016712,3]
[402320099,1768657851910,-500.0,0.00016712,3]
[402320101,1768657851920,-500.0,0.00016712,3]
[402320103,1768657851930,-500.0,0.00016712,3]
[402320105,1768657851940,-621.86,0.00016712,3]
[402320107,1768657851950,-500.0,0.00016712,3]
[402320109,1768657851959,-500.0,0.00016712,3]
[402320111,1768657851968,-500.0,0.00016712,3]
[402320113,1768657851978,-500.0,0.00016712,3]
[402320115,1768657851988,-1202.31,0.00016712,3]
[402320117,1768657851997,-500.0,0.00016712,3]
[402320119,1768657852006,-500.0,0.00016712,3]
[402320121,1768657852016,-596.38925241,0.00016712,3]
[402320123,1768657852025,-1508.93,0.00016712,3]
[402320125,1768657852035,-500.0,0.00016712,3]
[402320142,1768657852197,-500.0,0.00016712,3]
[402320144,1768657852207,-1266.51,0.00016712,3]
[402320146,1768657852216,-767.52,0.00016712,3]
[402320148,1768657852225,-500.0,0.00016712,3]
[402320150,1768657852237,-1200.19,0.00016712,3]
[402320152,1768657852247,-1421.75,0.00016712,3]
[402320154,1768657852258,-500.0,0.00016712,3]
[402320157,1768657852268,-1545.72,0.00016712,3]
[402320159,1768657852278,-500.0,0.00016712,3]
[402320161,1768657852288,-500.0,0.00016712,3]
[402320163,1768657852299,-500.0,0.00016712,3]
[402320165,1768657852308,-809.58,0.00016712,3]
[402320167,1768657852317,-1919.96,0.00016712,3]
[402320169,1768657852327,-500.0,0.00016712,3]
[402320171,1768657852335,-1024.94,0.00016712,3]
[402320173,1768657852345,-500.0,0.00016712,3]
[402320175,1768657852354,-615.61,0.00016712,3]
[402320177,1768657852363,-748.84,0.00016712,3]
[402320179,1768657852373,-500.0,0.00016712,3]
[402320181,1768657852382,-521.07,0.00016712,3]
[402320183,1768657852391,-550.35,0.00016712,3]
[402320185,1768657852400,-2429.64,0.00016712,3]
[402320186,1768657852409,-500.0,0.00016712,3]
[402320188,1768657852418,-500.0,0.00016712,3]
[402320190,1768657852427,-500.0,0.00016712,3]
[402320192,1768657852437,-500.0,0.00016712,3]
[402320194,1768657852447,-500.0,0.00016712,3]
[402320196,1768657852456,-500.0,0.00016712,3]
[402320198,1768657852465,-500.0,0.00016712,3]
[402320200,1768657852474,-500.0,0.00016712,3]
[402320202,1768657852484,-711.85,0.00016712,3]
[402320204,1768657852493,-585.93,0.00016712,3]
[402320206,1768657852502,-740.9,0.00016712,3]
[402320208,1768657852511,-500.0,0.00016712,3]
[402320210,1768657852520,-500.0,0.00016712,3]
[402320212,1768657852529,-500.0,0.00016712,3]
[402320214,1768657852539,-749.87,0.00016712,3]
[402320216,1768657852548,-1462.44,0.00016712,3]
[402320218,1768657852558,-500.0,0.00016712,3]
[402320221,1768657852567,-500.0,0.00016712,3]
[402320223,1768657852576,-500.0,0.00016712,3]
[402320224,1768657852586,-913.3,0.00016712,3]
[402320227,1768657852595,-1434.09,0.00016712,3]
[402320229,1768657852609,-1026.02,0.00016712,3]
[402320231,1768657852619,-1259.51,0.00016712,3]
[402320233,1768657852629,-858.66,0.00016712,3]
[402320235,1768657852639,-500.0,0.00016712,3]
[402320238,1768657852651,-551.45,0.00016712,3]
[402320240,1768657852661,-500.0,0.00016712,3]
[402320242,1768657852671,-1402.48,0.00016712,3]
[402320244,1768657852680,-1748.91,0.00016712,3]
[402320246,1768657852690,-500.0,0.00016712,3]
[402320248,1768657852700,-500.0,0.00016712,3]
[402320250,1768657852709,-1350.82,0.00016712,3]
[402320252,1768657852719,-597.6,0.00016712,3]
[402320254,1768657852729,-500.0,0.00016712,3]
[402320256,1768657852738,-500.0,0.00016712,3]
[402320258,1768657852748,-828.04,0.00016712,3]
[402320260,1768657852758,-1540.55,0.00016712,3]
[402320262,1768657852768,-500.0,0.00016712,3]
[402320264,1768657852778,-1116.63,0.00016712,3]
[402320266,1768657852787,-500.0,0.00016712,3]
[402320269,1768657852797,-1238.02,0.00016712,3]
[402320271,1768657852807,-849.7,0.00016712,3]
[402320273,1768657852816,-500.0,0.00016712,3]
[402320275,1768657852825,-650.31,0.00016712,3]
[402320277,1768657852835,-500.0,0.00016712,3]